bitfinex/quotes_BTCUSD_20250714
["timestamp","ask_amount","ask_price","bid_price","bid_amount"]
[1752504170428,1.1572211,120760.0,120750.0,0.01560496]
[1752504171658,1.1592211,120760.0,120750.0,0.01560496]
[1752504173401,1.0236211,120760.0,120750.0,0.01560496]
[1752504173839,1.1591811,120760.0,120750.0,0.01560496]
[1752504174267,0.68098204,120760.0,120750.0,0.01560496]
[1752504174741,0.0638,120730.0,120700.0,0.031]
[1752504175022,0.34045383,120710.0,120700.0,0.0005]
[1752504175253,0.239813,120720.0,120700.0,0.0005]
[1752504175506,0.34045383,120710.0,120700.0,0.0005]
[1752504175762,0.20668,120720.0,120700.0,0.0005]
[1752504176449,0.23994013,120720.0,120700.0,0.0015]
[1752504176894,0.01656759,120710.0,120700.0,0.0005]
[1752504177135,0.0274404,120710.0,120700.0,0.0005]
[1752504177359,0.0108726,120710.0,120700.0,0.0045]
[1752504177608,0.00258884,120710.0,120700.0,0.0045]
[1752504177833,0.21167886,120720.0,120700.0,0.0005]
[1752504178081,0.00058656,120710.0,120700.0,0.0025]
[1752504178557,0.00058656,120710.0,120700.0,0.0015]
[1752504178779,0.00058656,120710.0,120700.0,0.0045]
[1752504178964,0.00058656,120710.0,120700.0,0.0015]
[1752504179211,0.00058656,120710.0,120700.0,0.0005]
[1752504179456,0.00058656,120710.0,120700.0,0.0035]
[1752504179684,0.00058656,120710.0,120700.0,0.0045]
[1752504179908,0.00887026,120710.0,120700.0,0.0045]
[1752504180174,0.0114133,120710.0,120700.0,0.0035]
[1752504180395,0.00058656,120710.0,120700.0,0.0045]
[1752504180839,0.00058656,120710.0,120700.0,0.0035]
[1752504181059,0.00058656,120710.0,120700.0,0.0005]
[1752504181283,0.00058656,120710.0,120700.0,0.0015]
[1752504181509,0.00887026,120710.0,120700.0,0.0035]
[1752504181743,0.00058656,120710.0,120700.0,0.0015]
[1752504182212,0.00058656,120710.0,120700.0,0.0025]
[1752504182441,0.0114122,120710.0,120700.0,0.0025]
[1752504182920,0.0114122,120710.0,120700.0,0.0015]
[1752504184259,0.0114122,120710.0,120700.0,0.0035]
[1752504184488,0.00012686,120720.0,120710.0,1.560453]
[1752504184720,0.00012686,120720.0,120710.0,1.64604194]
[1752504184939,0.00012686,120720.0,120710.0,0.97358111]
[1752504185373,0.01109774,120720.0,120710.0,0.45384711]
[1752504185600,0.01109774,120720.0,120710.0,0.14236]
[1752504185824,0.00012686,120720.0,120710.0,0.14236]
[1752504186053,0.00840987,120720.0,120700.0,0.14593125]
[1752504186290,0.06583798,120720.0,120710.0,0.014586]
[1752504186599,0.07412106,120720.0,120700.0,0.08284711]
[1752504186813,0.07412106,120720.0,120700.0,0.24064936]
[1752504187036,0.07412106,120720.0,120700.0,0.01698225]
[1752504187037,0.14580421,120720.0,120700.0,0.01698225]
[1752504187254,0.16237077,120720.0,120700.0,0.01598225]
[1752504187474,0.12982454,120720.0,120700.0,0.03290078]
[1752504187700,0.07660339,120720.0,120700.0,0.5180535]
[1752504187922,0.01089227,120720.0,120710.0,0.0627]
[1752504188145,0.00095984,120720.0,120710.0,0.30164936]
[1752504188374,0.00095984,120720.0,120710.0,0.3016471]
[1752504188610,0.39714779,120730.0,120710.0,0.0968271]
[1752504188844,0.43663053,120730.0,120710.0,0.23945726]
[1752504189055,0.06571112,120720.0,120710.0,0.23945726]
[1752504189478,0.06571112,120720.0,120710.0,0.09733726]
[1752504189684,0.06571112,120740.0,120710.0,0.77181726]
[1752504189910,0.06629768,120740.0,120710.0,0.27181726]
[1752504190133,0.09390706,120740.0,120710.0,0.27181726]
[1752504190396,0.15420706,120740.0,120710.0,0.12973726]
[1752504190628,0.51077123,120740.0,120720.0,0.14192]
[1752504190862,0.50190228,120740.0,120720.0,0.11547999]
[1752504191084,0.17846652,120740.0,120720.0,0.11547999]
[1752504191307,0.00828232,120730.0,120720.0,0.11547999]
[1752504191537,0.17018488,120740.0,120720.0,0.13285547]
[1752504191760,0.17018481,120740.0,120720.0,0.13285547]
[1752504191991,0.17018481,120740.0,120720.0,0.13285562]
[1752504192239,0.15362064,120740.0,120720.0,0.13285562]
[1752504192497,0.14533873,120740.0,120720.0,0.03285562]
[1752504192736,0.16248918,120740.0,120720.0,0.03285562]
[1752504192980,0.16248918,120740.0,120720.0,0.03285681]
[1752504193430,0.17177137,120740.0,120720.0,0.03285681]
[1752504193649,0.15462057,120740.0,120720.0,0.03285681]
[1752504193878,0.16290255,120740.0,120720.0,0.03285681]
[1752504194104,0.15462057,120740.0,120720.0,0.03285681]
[1752504194372,0.15562057,120740.0,120720.0,0.03285681]
[1752504194625,0.13905702,120740.0,120720.0,0.03285681]
[1752504194836,0.0130459,120740.0,120720.0,0.17636771]
[1752504195086,0.0130459,120740.0,120730.0,0.1414]
[1752504195302,0.0130459,120740.0,120730.0,0.31461306]
[1752504195762,0.0130459,120740.0,120730.0,0.25141306]
[1752504196204,0.0130459,120740.0,120730.0,0.25145306]
[1752504196436,0.0120459,120740.0,120730.0,0.25145306]
[1752504197548,0.0120459,120740.0,120730.0,0.03070595]
[1752504197760,0.0120459,120740.0,120730.0,0.17202595]
[1752504197975,0.0120459,120740.0,120730.0,0.17002595]
[1752504198219,0.0120459,120740.0,120730.0,0.02870595]
[1752504198428,0.0449459,120740.0,120730.0,0.01648222]
[1752504198656,0.11893873,120740.0,120730.0,0.01648222]
[1752504198876,0.1272205,120740.0,120730.0,0.01648222]
[1752504199541,0.11893866,120740.0,120730.0,0.01648222]
[1752504199735,0.28458411,120740.0,120730.0,0.03224644]
[1752504200025,0.28458411,120740.0,120730.0,0.01648222]
[1752504200026,0.34232985,120740.0,120730.0,0.01648222]
[1752504200246,0.33404814,120740.0,120730.0,0.01648222]
[1752504200479,0.33304814,120740.0,120730.0,0.01548222]
[1752504200728,0.16740296,120740.0,120720.0,0.14096]
[1752504200921,0.0082828,120730.0,120720.0,0.02963458]
[1752504201199,0.07246909,120730.0,120720.0,0.01548756]
[1752504201432,0.08075134,120730.0,120720.0,0.01548756]
[1752504201652,0.08075134,120730.0,120710.0,0.14127016]
[1752504201888,0.06418656,120730.0,120720.0,0.002]
[1752504202137,0.08075141,120730.0,120710.0,0.00051016]
[1752504202361,0.08075141,120730.0,120710.0,0.14123016]
[1752504202579,0.08903408,120730.0,120720.0,0.002]
[1752504202786,0.08075141,120730.0,120720.0,0.002]
[1752504203015,0.06418656,120730.0,120720.0,0.003]
[1752504203226,0.07246888,120730.0,120720.0,0.001]
[1752504203652,0.06418656,120730.0,120720.0,0.001]
[1752504204317,0.08075155,120730.0,120720.0,0.001]
[1752504204758,0.08075148,120730.0,120720.0,0.001]
[1752504204981,0.06418656,120730.0,120720.0,0.001]
[1752504205223,0.00058656,120730.0,120720.0,0.003]
[1752504205432,0.00886895,120730.0,120720.0,0.003]
[1752504205667,0.00058656,120730.0,120720.0,0.003]
[1752504206374,0.07206888,120730.0,120720.0,0.003]
[1752504206801,0.08035134,120730.0,120720.0,0.003]
[1752504207009,0.07206888,120730.0,120720.0,0.003]
[1752504207443,0.08035134,120730.0,120720.0,0.003]
[1752504207875,0.08863394,120730.0,120720.0,0.003]
[1752504208093,0.08035134,120730.0,120720.0,0.003]
[1752504208311,0.07206888,120730.0,120720.0,0.003]
[1752504208522,0.08035134,120730.0,120720.0,0.003]
[1752504208736,0.08035127,120730.0,120720.0,0.003]
[1752504208948,0.07206888,120730.0,120720.0,0.003]
[1752504209596,0.06378656,120730.0,120720.0,0.003]
[1752504209815,0.10885702,120740.0,120720.0,0.003]
[1752504210035,0.13925702,120740.0,120720.0,0.003]
[1752504210248,0.0625,120730.0,120720.0,0.003]
[1752504210882,0.09332057,120740.0,120720.0,0.002]
[1752504211116,0.14763873,120740.0,120720.0,0.003]
[1752504211335,0.14763873,120740.0,120720.0,0.001]
[1752504211548,0.15592057,120740.0,120720.0,0.001]
[1752504211762,0.14763873,120740.0,120720.0,0.003]
[1752504211978,0.15592057,120740.0,120720.0,0.003]
[1752504212217,0.14763873,120740.0,120720.0,0.003]
[1752504212438,0.07675702,120740.0,120720.0,0.58641801]
[1752504212659,0.0110459,120740.0,120730.0,0.22293784]
[1752504212910,0.0110459,120740.0,120730.0,0.25206711]
[1752504213152,0.12931112,120760.0,120730.0,0.25206711]
[1752504213359,0.12931112,120760.0,120740.0,0.14159056]
[1752504213553,0.13759152,120760.0,120740.0,0.14745797]
[1752504213808,0.15415294,120760.0,120740.0,0.14952853]
[1752504214022,0.14587213,120760.0,120740.0,0.14952853]
[1752504214237,0.16491646,120760.0,120740.0,0.14745797]
[1752504214451,0.16491646,120760.0,120740.0,0.01000853]
[1752504214452,0.15763571,120760.0,120740.0,0.01000853]
[1752504214664,0.14166126,120760.0,120740.0,0.01000853]
[1752504214887,0.1083747,120760.0,120740.0,0.01000853]
[1752504215101,0.0774747,120760.0,120740.0,0.51000853]
[1752504215316,0.0774747,120760.0,120740.0,0.11928508]
[1752504215540,0.1405747,120760.0,120740.0,0.09135564]
[1752504215766,0.15713557,120760.0,120740.0,0.09135564]
[1752504216011,0.58633451,120750.0,120740.0,0.00793797]
[1752504216227,0.91746672,120750.0,120740.0,0.00693797]
[1752504216663,1.01335468,120750.0,120740.0,0.00693797]
[1752504217318,1.15355468,120750.0,120740.0,0.00693797]
[1752504217974,1.15455468,120750.0,120740.0,0.00693797]
[1752504218621,1.01535468,120750.0,120740.0,0.00693797]
[1752504218833,1.15435468,120750.0,120740.0,0.00693797]
[1752504219262,1.01535468,120750.0,120740.0,0.00693797]
[1752504219484,1.15423468,120750.0,120740.0,0.00693797]
[1752504219914,1.01535468,120750.0,120740.0,0.00693797]
[1752504220145,0.18223487,120730.0,120710.0,0.00258123]
[1752504220361,0.01656609,120720.0,120710.0,0.00258123]
[1752504220781,0.42160716,120720.0,120710.0,0.00051016]
[1752504221034,0.08056677,120720.0,120710.0,0.00051016]
[1752504221241,0.08943634,120720.0,120710.0,0.00051016]
[1752504221452,0.2468261,120720.0,120710.0,0.00351016]
[1752504221668,0.24623954,120720.0,120710.0,0.00351016]
[1752504221888,0.58669337,120720.0,120710.0,0.00251016]
[1752504222302,0.23795612,120720.0,120710.0,0.00551016]
[1752504222506,0.08056677,120720.0,120710.0,0.00251016]
[1752504222724,0.0324,120720.0,120710.0,0.00251016]
[1752504222934,0.001,120720.0,120710.0,0.00251016]
[1752504223155,0.001,120720.0,120710.0,0.00051016]
[1752504223363,0.01756622,120720.0,120710.0,0.00051016]
[1752504223808,0.01756616,120720.0,120710.0,0.00051016]
[1752504224017,0.001,120720.0,120710.0,0.00258123]
[1752504224224,0.01656554,120730.0,120710.0,0.00258123]
[1752504224447,0.18281249,120730.0,120710.0,0.00258123]
[1752504224652,0.00828315,120720.0,120710.0,0.00658123]
[1752504224912,0.01656643,120720.0,120710.0,0.00658123]
[1752504225117,0.00828308,120720.0,120710.0,0.00358123]
[1752504225330,0.00828308,120720.0,120710.0,0.00658123]
[1752504225531,0.00828308,120720.0,120710.0,0.00358123]
[1752504225745,0.01656629,120720.0,120710.0,0.00358123]
[1752504225964,0.02484964,120720.0,120710.0,0.00458123]
[1752504226202,0.01656629,120720.0,120710.0,0.00458123]
[1752504226416,0.08227768,120720.0,120710.0,0.00251016]
[1752504226627,0.08227734,120720.0,120710.0,0.00251016]
[1752504226832,0.06571112,120720.0,120710.0,0.00251016]
[1752504227063,0.63471338,120740.0,120710.0,0.00251016]
[1752504227280,0.00828239,120730.0,120710.0,0.03231016]
[1752504227491,0.02484752,120730.0,120710.0,0.03231016]
[1752504227698,0.08156636,120720.0,120710.0,0.00251016]
[1752504227912,0.26380604,120720.0,120710.0,0.13967016]
[1752504228130,0.08984978,120720.0,120710.0,0.15515291]
[1752504228364,0.1225609,120720.0,120710.0,0.15515291]
[1752504228574,0.1225609,120720.0,120710.0,0.15407291]
[1752504228811,0.11427748,120720.0,120710.0,0.17152906]
[1752504229025,0.11427748,120720.0,120710.0,0.15507177]
[1752504229236,0.11427748,120720.0,120710.0,0.15407177]
[1752504229443,0.11427748,120720.0,120710.0,0.15407154]
[1752504229670,0.16364453,120720.0,120710.0,0.15407154]
[1752504229887,0.16364453,120720.0,120710.0,0.01599154]
[1752504230129,0.16364446,120720.0,120710.0,0.01599154]
[1752504230553,0.16364439,120720.0,120710.0,0.01699154]
[1752504230760,0.1553609,120720.0,120710.0,0.01699154]
[1752504230969,0.1553609,120720.0,120710.0,0.03153269]
[1752504231419,0.16364446,120720.0,120710.0,0.03253269]
[1752504231620,0.67035748,120720.0,120710.0,0.01599154]
[1752504231821,0.50409829,120720.0,120710.0,0.01599154]
[1752504232031,0.49581473,120720.0,120710.0,0.01599154]
[1752504232257,0.66977147,120720.0,120710.0,0.01599154]
[1752504232706,0.66248819,120720.0,120710.0,0.01599154]
[1752504232911,0.65420477,120720.0,120710.0,0.01599154]
[1752504233122,0.66190896,120720.0,120710.0,0.01599154]
[1752504233788,0.66190896,120720.0,120710.0,0.03140469]
[1752504234013,0.66190896,120720.0,120710.0,0.01599154]
[1752504234457,0.66190896,120720.0,120710.0,0.01699154]
[1752504235280,0.66290896,120720.0,120710.0,0.01699154]
[1752504235693,0.66290896,120720.0,120710.0,0.01599154]
[1752504236220,0.001,120720.0,120710.0,0.01599154]
[1752504236434,0.69744034,120730.0,120710.0,0.01599154]
[1752504236692,0.88794713,120730.0,120710.0,0.03257582]
[1752504236907,0.77670581,120730.0,120710.0,0.03257582]
[1752504237118,0.00828301,120720.0,120710.0,0.03257582]
[1752504237326,0.01656616,120720.0,120710.0,0.01699154]
[1752504237538,0.9506486,120730.0,120710.0,0.01599154]
[1752504237741,0.00828308,120720.0,120710.0,0.01598279]
[1752504238163,0.00828301,120720.0,120710.0,0.01598279]
[1752504238368,0.01656622,120720.0,120710.0,0.01598279]
[1752504238793,0.01656616,120720.0,120710.0,0.02098279]
[1752504238995,0.02484944,120720.0,120710.0,0.03704619]
[1752504239208,0.38229088,120720.0,120710.0,0.03204619]
[1752504239429,0.54796351,120720.0,120710.0,0.03304619]
[1752504239649,0.45497444,120720.0,120710.0,0.03304619]
[1752504239865,0.67807518,120720.0,120710.0,0.01698279]
[1752504240113,1.01066677,120720.0,120710.0,0.01698279]
[1752504240375,0.66150875,120720.0,120710.0,0.01698279]
[1752504241041,1.03507857,120720.0,120710.0,0.01698279]
[1752504241486,1.37507857,120720.0,120710.0,0.01698279]
[1752504242384,1.37507857,120720.0,120710.0,0.01598279]
[1752504242616,1.55528387,120720.0,120710.0,0.01598279]
[1752504242839,1.56926687,120720.0,120710.0,0.01598279]
[1752504243069,1.56826687,120720.0,120710.0,0.01598279]
[1752504243277,1.57026687,120720.0,120710.0,0.01598279]
[1752504243487,1.56926687,120720.0,120710.0,0.01598279]
[1752504243711,1.57126687,120720.0,120710.0,0.01598279]
[1752504244590,1.57026687,120720.0,120710.0,0.01598279]
[1752504245009,1.57126687,120720.0,120710.0,0.01598279]
[1752504245477,0.1822998,120680.0,120670.0,0.05320151]
[1752504245699,1.56755584,120680.0,120670.0,0.05112975]
[1752504246341,1.58209669,120680.0,120670.0,0.05112975]
[1752504247006,1.7701238,120680.0,120670.0,0.05112975]
[1752504247222,1.4132064,120680.0,120670.0,0.05112975]
[1752504247470,1.4152064,120680.0,120670.0,0.0428461]
[1752504247918,1.4152064,120680.0,120670.0,0.03456245]
[1752504248152,1.4152064,120680.0,120670.0,0.0262788]
[1752504248507,1.4152064,120680.0,120670.0,0.01799515]
[1752504248972,1.4152064,120680.0,120670.0,0.0117115]
[1752504249402,1.4152064,120680.0,120670.0,0.00142785]
[1752504249831,0.57642819,120670.0,120660.0,0.00024]
[1752504250040,0.99917394,120670.0,120660.0,0.00024]
[1752504250700,0.6577753,120670.0,120660.0,0.00024]
[1752504250920,0.99917394,120670.0,120660.0,0.00024]
[1752504251140,0.6577753,120670.0,120660.0,0.00024]
[1752504251366,0.88742215,120670.0,120660.0,0.00024]
[1752504251613,0.80607504,120670.0,120660.0,0.00024]
[1752504252118,0.1662392,120680.0,120660.0,0.00024]
[1752504252340,0.01708419,120680.0,120660.0,0.14775904]
[1752504252555,0.00051166,120680.0,120660.0,0.48708575]
[1752504252778,0.00051166,120680.0,120670.0,0.48344575]
[1752504252998,0.00051166,120680.0,120670.0,0.72564575]
[1752504253218,0.00051166,120680.0,120670.0,0.24204711]
[1752504253678,0.00051166,120680.0,120670.0,3.2851496]
[1752504254149,0.00051166,120680.0,120670.0,2.4742756]
[1752504254379,0.00051166,120680.0,120670.0,2.4742356]
[1752504254596,0.00051166,120680.0,120670.0,3.8593616]
[1752504254806,0.00151166,120680.0,120670.0,3.83921833]
[1752504255034,0.00151166,120680.0,120670.0,3.88921833]
[1752504255250,0.00151166,120680.0,120670.0,4.03177833]
[1752504255694,0.00151166,120680.0,120670.0,3.94894833]
[1752504255898,0.00151166,120680.0,120670.0,3.74506969]
[1752504256112,0.00051166,120680.0,120670.0,4.08646833]
[1752504256328,0.00051166,120680.0,120670.0,4.09046833]
[1752504256553,0.00051166,120680.0,120670.0,4.25160233]
[1752504256782,0.00051166,120680.0,120670.0,1.18046133]
[1752504257060,0.00051166,120680.0,120670.0,0.76412596]
[1752504257278,0.00051166,120680.0,120670.0,0.60714511]
[1752504257512,0.00051166,120680.0,120670.0,0.50966976]
[1752504257959,0.00051166,120680.0,120670.0,0.40966976]
[1752504258167,0.00051166,120680.0,120670.0,0.26718976]
[1752504258374,0.00051166,120680.0,120670.0,0.40966976]
[1752504258588,0.00051166,120680.0,120670.0,0.41262976]
[1752504258799,0.00051166,120680.0,120670.0,0.7540284]
[1752504259013,0.00051166,120680.0,120670.0,0.7530284]
[1752504259214,0.00051166,120680.0,120670.0,0.6105884]
[1752504259459,0.00051166,120680.0,120670.0,0.16349476]
[1752504259719,0.00051166,120680.0,120670.0,0.40492652]
[1752504259931,0.00051166,120680.0,120670.0,0.39981476]
[1752504260147,0.00051166,120680.0,120670.0,0.34411476]
[1752504260365,0.00051166,120680.0,120670.0,0.34415476]
[1752504260847,0.02536995,120680.0,120670.0,0.12044765]
[1752504261068,0.92719673,120680.0,120670.0,0.105]
[1752504261277,1.06735858,120680.0,120670.0,0.005]
[1752504261494,0.99290785,120680.0,120670.0,0.005]
[1752504261711,0.99232129,120680.0,120670.0,0.005]
[1752504262362,0.99232129,120680.0,120670.0,0.002]
[1752504262576,0.99232129,120680.0,120670.0,0.005]
[1752504262806,0.99232129,120680.0,120670.0,0.002]
[1752504263252,0.17402833,120670.0,120660.0,0.00024]
[1752504263522,0.37373981,120670.0,120660.0,0.00024]
[1752504263723,0.5374819,120670.0,120660.0,0.00024]
[1752504263931,0.37174063,120670.0,120660.0,0.00024]
[1752504264144,0.5374819,120670.0,120660.0,0.00024]
[1752504264597,0.58651477,120670.0,120660.0,0.00024]
[1752504264808,0.60308882,120670.0,120660.0,0.00024]
[1752504265015,0.58651532,120670.0,120660.0,0.00024]
[1752504265220,0.92791396,120670.0,120660.0,0.00024]
[1752504265657,0.06622278,120680.0,120660.0,0.00024]
[1752504265875,0.4145086,120680.0,120660.0,0.00231193]
[1752504266095,0.43108086,120680.0,120660.0,0.00231193]
[1752504266313,0.4310808,120680.0,120660.0,0.00231193]
[1752504266542,0.42279463,120680.0,120660.0,0.00231193]
[1752504266771,0.59681085,120680.0,120660.0,0.00231193]
[1752504267037,0.41450867,120680.0,120660.0,0.00231193]
[1752504267331,0.6050953,120680.0,120660.0,0.00231193]
[1752504267521,0.00051166,120680.0,120660.0,0.00231193]
[1752504267742,0.00879755,120680.0,120660.0,0.14463193]
[1752504267955,0.00051166,120680.0,120670.0,0.08134711]
[1752504268166,0.00051166,120680.0,120670.0,0.72366711]
[1752504268387,0.00051166,120680.0,120670.0,0.08134711]
[1752504268612,0.00051166,120680.0,120670.0,0.72366711]
[1752504268831,0.00051166,120680.0,120670.0,0.22362711]
[1752504269065,0.00051166,120680.0,120670.0,0.08134711]
[1752504269275,0.00051166,120680.0,120670.0,0.22565887]
[1752504269485,0.00051166,120680.0,120670.0,0.22358711]
[1752504270131,0.00979755,120680.0,120670.0,0.08134711]
[1752504270339,0.08379463,120680.0,120670.0,0.1]
[1752504270549,0.06722278,120680.0,120670.0,0.1]
[1752504270776,0.06722278,120680.0,120670.0,0.252224]
[1752504270777,0.00151166,120680.0,120670.0,0.252224]
[1752504270968,0.00151166,120680.0,120670.0,0.010024]
[1752504271214,0.00151166,120680.0,120670.0,0.22354711]
[1752504271425,0.00251166,120680.0,120670.0,0.22354711]
[1752504271843,0.00251166,120680.0,120670.0,0.64384711]
[1752504272278,0.00251166,120680.0,120670.0,0.28596711]
[1752504272505,0.00251166,120680.0,120670.0,0.28600711]
[1752504272725,0.00251166,120680.0,120670.0,0.31463182]
[1752504273166,0.00251166,120680.0,120670.0,0.17247182]
[1752504273395,0.00251166,120680.0,120670.0,2.45225646]
[1752504273609,0.00251166,120680.0,120670.0,2.46679731]
[1752504273851,0.00251166,120680.0,120670.0,2.60895731]
[1752504274061,0.00151166,120680.0,120670.0,2.46679731]
[1752504274288,0.00151166,120680.0,120670.0,2.60903731]
[1752504274514,0.00151166,120680.0,120670.0,0.53041131]
[1752504274765,0.00151166,120680.0,120670.0,5.67878567]
[1752504274981,0.00151166,120680.0,120670.0,3.80179631]
[1752504275228,0.00051166,120680.0,120670.0,3.46179631]
[1752504275654,0.00051166,120680.0,120670.0,3.96275731]
[1752504275874,0.00051166,120680.0,120670.0,3.96175731]
[1752504276097,0.00051166,120680.0,120670.0,3.21967331]
[1752504276306,0.00051166,120680.0,120670.0,3.07739331]
[1752504276523,0.00051166,120680.0,120670.0,5.72165131]
[1752504276671,0.00051166,120680.0,120670.0,6.06065131]
[1752504277077,0.00051166,120680.0,120670.0,5.58201267]
[1752504277280,0.00051166,120680.0,120670.0,6.08708831]
[1752504277491,0.00051166,120680.0,120670.0,6.35935131]
[1752504277710,0.00051166,120680.0,120670.0,5.63451731]
[1752504278129,0.00051166,120680.0,120670.0,2.81281631]
[1752504278337,0.00051166,120680.0,120670.0,2.67053631]
[1752504278565,0.00051166,120680.0,120670.0,4.49155131]
[1752504278771,0.00051166,120680.0,120670.0,4.63095131]
[1752504278994,0.04635606,120700.0,120690.0,0.04584085]
[1752504279200,0.06571112,120720.0,120700.0,0.032]
[1752504279405,0.06579584,120720.0,120710.0,0.61234711]
[1752504279618,0.06579584,120720.0,120710.0,0.22390711]
[1752504279828,0.06579584,120720.0,120710.0,0.08134711]
[1752504280039,0.06579584,120720.0,120710.0,0.08948182]
[1752504280241,0.06579584,120720.0,120710.0,0.73208182]
[1752504280451,0.06579584,120720.0,120710.0,0.23208182]
[1752504280865,0.06579584,120720.0,120710.0,0.08948182]
[1752504281081,0.06579584,120720.0,120710.0,0.23212182]
[1752504281283,0.06579584,120720.0,120710.0,0.58200182]
[1752504281539,0.06579584,120720.0,120710.0,0.08200182]
[1752504281741,0.06579584,120720.0,120710.0,1.69881882]
[1752504281742,8.472e-05,120720.0,120710.0,1.69881882]
[1752504281954,0.00208472,120720.0,120710.0,1.91219831]
[1752504282160,0.00208472,120720.0,120710.0,4.67523531]
[1752504282392,0.00208472,120720.0,120710.0,6.18924131]
[1752504282598,0.00208472,120720.0,120710.0,4.60967331]
[1752504282856,0.00308472,120720.0,120710.0,4.55209931]
[1752504283067,0.00308472,120720.0,120710.0,1.18924131]
[1752504283275,0.00208472,120720.0,120710.0,5.84916831]
[1752504283482,0.00208472,120720.0,120710.0,5.99184831]
[1752504283696,0.08384282,120760.0,120730.0,0.0648]
[1752504283697,0.06571112,120740.0,120730.0,0.0648]
[1752504283905,0.08092754,120760.0,120740.0,0.07684085]
[1752504284113,0.08092754,120760.0,120750.0,5.1780365]
[1752504284307,0.08092754,120760.0,120750.0,4.67596611]
[1752504284727,0.08092754,120760.0,120750.0,0.08134711]
[1752504284728,0.14612754,120760.0,120750.0,0.08134711]
[1752504284949,0.08092754,120760.0,120750.0,0.22418711]
[1752504285157,0.08092754,120760.0,120750.0,1.40267045]
[1752504285570,0.09671112,120800.0,120760.0,0.07794085]
[1752504285783,0.09671112,120800.0,120780.0,0.34139864]
[1752504285784,0.06571112,120800.0,120780.0,0.34139864]
[1752504285995,0.09472802,120800.0,120790.0,0.36933681]
[1752504286213,0.12722802,120800.0,120790.0,0.01103817]
[1752504286423,0.09472802,120800.0,120790.0,0.08134711]
[1752504286647,0.0290169,120800.0,120790.0,2.75526881]
[1752504286858,0.0004,120810.0,120790.0,1.68188111]
[1752504287067,0.07017691,120810.0,120800.0,0.08134711]
[1752504287277,0.01655532,120800.0,120790.0,0.5]
[1752504287484,0.15204417,120800.0,120790.0,0.08134711]
[1752504287692,0.12721112,120800.0,120790.0,0.22442711]
[1752504287955,0.06571112,120800.0,120790.0,0.08134711]
[1752504288170,0.06571112,120800.0,120790.0,0.58958182]
[1752504288375,0.00091192,120810.0,120790.0,0.58958182]
[1752504288590,0.37331192,120810.0,120800.0,0.08341664]
[1752504288800,0.37331192,120810.0,120800.0,0.22649664]
[1752504289004,0.37331192,120810.0,120800.0,0.22442711]
[1752504289230,0.03013868,120810.0,120800.0,0.09228528]
[1752504289860,0.03313868,120810.0,120800.0,0.09228528]
[1752504290078,0.12106981,120810.0,120800.0,0.09228528]
[1752504290293,0.11806974,120810.0,120800.0,0.01093817]
[1752504290502,0.11806974,120810.0,120790.0,0.0020697]
[1752504290503,0.12634706,120810.0,120790.0,0.0020697]
[1752504290714,0.12106974,120810.0,120790.0,0.08341681]
[1752504290923,0.10451552,120810.0,120800.0,0.22426711]
[1752504291133,0.03013868,120810.0,120800.0,0.08134711]
[1752504291351,0.03013868,120810.0,120800.0,0.22426711]
[1752504291558,0.03313868,120810.0,120800.0,0.10408079]
[1752504291764,0.03313868,120810.0,120800.0,0.22430711]
[1752504291974,0.03313868,120810.0,120800.0,0.72430711]
[1752504292182,0.03313868,120810.0,120800.0,1.02000711]
[1752504292386,0.03313868,120810.0,120800.0,0.52000711]
[1752504292813,0.03013868,120810.0,120800.0,0.52000711]
[1752504293030,0.03013868,120810.0,120800.0,0.51984711]
[1752504293236,0.03013868,120810.0,120800.0,0.37704711]
[1752504293237,0.03113868,120810.0,120800.0,0.37704711]
[1752504293659,0.03013868,120810.0,120800.0,0.37704711]
[1752504293881,0.03013868,120810.0,120800.0,0.71844575]
[1752504294106,0.03113868,120810.0,120800.0,1.31494875]
[1752504294525,0.03013868,120810.0,120800.0,0.83075011]
[1752504294742,0.03013868,120810.0,120800.0,0.37704711]
[1752504294966,0.03013868,120810.0,120800.0,0.51992711]
[1752504295408,0.03113868,120810.0,120800.0,0.08134711]
[1752504295825,0.03013868,120810.0,120800.0,0.72422711]
[1752504296035,0.03113868,120810.0,120800.0,0.58134711]
[1752504296246,0.03113868,120810.0,120800.0,0.08134711]
[1752504296458,0.03113868,120810.0,120800.0,1.18937575]
[1752504296684,0.03113868,120810.0,120800.0,4.81431375]
[1752504296685,0.03013868,120810.0,120800.0,4.81431375]
[1752504296886,0.03113868,120810.0,120800.0,4.95715375]
[1752504297316,0.03113868,120810.0,120800.0,4.81431375]
[1752504297551,0.03013868,120810.0,120800.0,3.1500626]
[1752504297767,0.00191192,120810.0,120800.0,0.8465866]
[1752504298010,0.00191192,120810.0,120800.0,5.8465866]
[1752504298226,0.00191192,120810.0,120800.0,5.7854706]
[1752504298642,0.00191192,120810.0,120800.0,5.8465866]
[1752504298856,0.00191192,120810.0,120800.0,5.9895466]
[1752504299315,0.00091192,120810.0,120800.0,5.4431666]
[1752504299543,0.00191192,120810.0,120800.0,4.6440596]
[1752504299767,0.00191192,120810.0,120800.0,0.9935466]
[1752504299984,0.00191192,120810.0,120800.0,4.6200626]
[1752504300201,0.00091192,120810.0,120800.0,4.6913456]
[1752504300423,0.00091192,120810.0,120800.0,4.6933456]
[1752504300650,0.00091192,120810.0,120800.0,6.1925866]
[1752504300878,0.00091192,120810.0,120800.0,1.03986396]
[1752504301103,0.00091192,120810.0,120800.0,1.06926396]
[1752504301334,0.00091192,120810.0,120800.0,1.2676626]
[1752504301565,0.00091192,120810.0,120800.0,1.2979626]
[1752504301806,0.00091192,120810.0,120800.0,3.4711766]
[1752504302095,0.00091192,120810.0,120800.0,3.84387524]
[1752504302321,0.06571112,120840.0,120830.0,0.01454085]
[1752504302540,0.00015356,120840.0,120830.0,5.9590666]
[1752504302759,0.00015356,120840.0,120830.0,5.7657866]
[1752504302997,0.00015356,120840.0,120830.0,5.31322196]
[1752504303260,0.02904764,120840.0,120830.0,1.09151996]
[1752504303482,0.02904764,120840.0,120830.0,1.5129586]
[1752504303698,0.00115356,120840.0,120830.0,3.1360136]
[1752504303955,0.00115356,120840.0,120830.0,0.08134711]
[1752504304154,0.07382841,120840.0,120830.0,0.08134711]
[1752504304365,0.13126468,120840.0,120830.0,0.08948182]
[1752504304574,0.13126468,120840.0,120830.0,0.23292182]
[1752504304796,0.66299694,120840.0,120830.0,0.08134711]
[1752504305007,0.02482682,120830.0,120820.0,0.14344]
[1752504305252,0.19034924,120830.0,120820.0,0.08134711]
[1752504305470,0.19034924,120830.0,120770.0,0.2957]
[1752504305471,0.0617,120810.0,120770.0,0.2957]
[1752504305698,0.06997691,120810.0,120780.0,0.96706198]
[1752504305915,0.06997691,120810.0,120790.0,0.591554]
[1752504306133,0.08653093,120810.0,120800.0,0.22693664]
[1752504306341,0.07825389,120810.0,120800.0,0.08134711]
[1752504306558,0.09380811,120810.0,120800.0,0.08134711]
[1752504306760,0.0577312,120810.0,120800.0,0.00813471]